[Event "FIDE World Rapid-ch Open 2018"]
[White "Yuffa, Daniil"]
[Black "Mamedov, Rauf"]
[Site "St. Petersburg"]
[Round "10.32"]
[Annotator "ChessBase"]
[Result "1/2-1/2"]
[Date "2018.12.27"]
[WhiteElo "2572"]
[BlackElo "2703"]
[PlyCount "108"]
[TimeControl "900+10"]

1. d4 {[%emt 0:0:0]} d5 {[%emt 0:0:0]} 2. c4 {[%emt 0:0:0]} e6 {[%emt 0:0:0]} 3. Nf3 {[%emt 0:0:0]} c5 {[%emt 0:0:0]} 4. g3 {[%emt 0:0:17]} Nc6 {[%emt 0:0:0]} 5. Bg2 {[%emt 0:0:5]} Nf6 {[%emt 0:0:19]} 6. 0-0 {[%emt 0:0:0]} Be7 {[%emt 0:0:9]} 7. cxd5 {[%emt 0:1:30]} exd5 {[%emt 0:0:1]} 8. Nc3 {[%emt 0:0:1]} 0-0 {[%emt 0:0:2]} 9. Bg5 {[%emt 0:0:9]} c4 {[%emt 0:0:0]} 10. Ne5 {[%emt 0:0:1]} Be6 {[%emt 0:0:0]} 11. e3 {[%emt 0:0:59]} h6 {[%emt 0:1:42]} 12. Bxf6 {[%emt 0:0:3]} Bxf6 {[%emt 0:0:0]} 13. f4 {[%emt 0:1:57]
} Bxe5 {[%emt 0:0:32]} 14. dxe5 {[%emt 0:0:19]} Qb6 {[%emt 0:0:0]} 15. f5 {[%emt 0:2:29]} Qxe3+ {[%emt 0:1:43]} 16. Kh1 {[%emt 0:0:1]} Bc8 {[%emt 0:0:22]} 17. Nxd5 {[%emt 0:1:35]} Qxe5 {[%emt 0:0:3]} 18. Qd2 {[%emt 0:1:28]
} Rd8 {[%emt 0:2:57]} 19. Rae1 {[%emt 0:1:34]} Qd4 {[%emt 0:0:0]} 20. Qxd4 {[%emt 0:1:28]} Nxd4 {[%emt 0:0:1]} 21. Ne7+ {[%emt 0:0:22]} Kf8 {[%emt 0:0:19]} 22. Re4 {[%emt 0:0:20]} Nb5 {[%emt 0:1:49]} 23. a4 {[%emt 0:2:52]
} Nd6 {[%emt 0:0:25]} 24. Re5 {[%emt 0:0:13]} Bd7 {[%emt 0:0:0]} 25. a5 {[%emt 0:0:13]} Re8 {[%emt 0:0:33]} 26. Rfe1 {[%emt 0:0:27]} Rad8 {[%emt 0:2:30]} 27. g4 {[%emt 0:0:6]} b5 {[%emt 0:0:37]} 28. axb6 {[%emt 0:0:36]
} axb6 {[%emt 0:0:1]} 29. Nd5 {[%emt 0:0:18]} Rxe5 {[%emt 0:0:0]} 30. Rxe5 {[%emt 0:0:1]} b5 {[%emt 0:0:8]} 31. Nb6 {[%emt 0:0:2]} Be8 {[%emt 0:0:5]} 32. h4 {[%emt 0:0:23]} Rb8 {[%emt 0:0:6]} 33. Nd5 {[%emt 0:0:17]
} b4 {[%emt 0:0:1]} 34. Re1 {[%emt 0:0:16]} h5 {[%emt 0:0:10]
} 35. gxh5 {[%emt 0:0:7]} Nxf5 {[%emt 0:0:1]} 36. Rc1 {[%emt 0:0:8]} Nd6 {[%emt 0:0:25]} 37. Ne3 {[%emt 0:0:11]} Bb5 {[%emt 0:0:33]} 38. Rd1 {[%emt 0:0:1]
} Ne8 {[%emt 0:0:0]} 39. Kg1 {[%emt 0:0:12]} Nf6 {[%emt 0:0:0]} 40. Rd4 {[%emt 0:0:10]} Rc8 {[%emt 0:0:7]} 41. Bf1 {[%emt 0:0:11]} c3 {[%emt 0:0:22]} 42. Bxb5 {[%emt 0:0:8]} cxb2 {[%emt 0:0:1]} 43. Bd3 {[%emt 0:0:20]
} Rc3 {[%emt 0:0:17]} 44. Rxb4 {[%emt 0:0:12]} Rxd3 {[%emt 0:0:0]} 45. Rb8+ {[%emt 0:0:2]} Ke7 {[%emt 0:0:1]} 46. Nf5+ {[%emt 0:0:2]
} Ke6 {[%emt 0:0:12]} 47. Nxg7+ {[%emt 0:0:3]} Ke5 {[%emt 0:0:4]} 48. Rxb2 {[%emt 0:0:4]} Rg3+ {[%emt 0:0:27]} 49. Rg2 {[%emt 0:0:1]} Kf4 {[%emt 0:0:0]} 50. h6 {[%emt 0:0:13]} Rxg2+ {[%emt 0:0:1]} 51. Kxg2 {[%emt 0:0:1]
} Kg4 {[%emt 0:0:1]} 52. Ne8 {[%emt 0:0:41]} Nh7 {[%emt 0:0:1]} 53. Nd6 {[%emt 0:0:3]
} Kxh4 {[%emt 0:0:9]} 54. Nxf7 {[%emt 0:0:3]} Kh5 {[%emt 0:0:0]} 1/2-1/2

[Event "FIDE World Rapid-ch Open 2018"]
[White "Bosiocic, Marin"]
[Black "Tomashevsky, Evgeny"]
[Site "St. Petersburg"]
[Round "10.33"]
[Annotator "ChessBase"]
[Result "1/2-1/2"]
[Date "2018.12.27"]
[WhiteElo "2599"]
[BlackElo "2705"]
[PlyCount "145"]
[TimeControl "900+10"]

1. e4 {[%emt 0:0:1]} e5 {[%emt 0:0:0]} 2. Nf3 {[%emt 0:0:0]} Nc6 {[%emt 0:0:0]
} 3. Bc4 Bc5 {[%emt 0:0:0]} 4. c3 {[%emt 0:0:0]} Nf6 {[%emt 0:0:0]
} 5. d4 {[%emt 0:0:0]} exd4 {[%emt 0:0:5]} 6. e5 {[%emt 0:0:0]} d5 {[%emt 0:0:7]} 7. Bb5 {[%emt 0:0:0]} Ne4 {[%emt 0:0:4]} 8. cxd4 {[%emt 0:0:0]
} Bb6 {[%emt 0:0:3]} 9. Nc3 {[%emt 0:0:0]} 0-0 {[%emt 0:0:0]} 10. Be3 {[%emt 0:0:0]} Bg4 {[%emt 0:1:4]} 11. h3 {[%emt 0:0:2]} Bh5 {[%emt 0:0:55]} 12. Qc2 {[%emt 0:0:1]} Bg6 {[%emt 0:1:16]} 13. Qb3 {[%emt 0:0:2]
} Ne7 {[%emt 0:1:46]} 14. 0-0 {[%emt 0:0:2]} c6 {[%emt 0:0:0]} 15. Bd3 {[%emt 0:0:1]} Nxc3 {[%emt 0:1:46]} 16. Qxc3 {[%emt 0:0:9]} Qd7 {[%emt 0:1:44]} 17. Nh4 {[%emt 0:1:8]} Be4 {[%emt 0:0:6]} 18. f3 {[%emt 0:0:58]
} Bxd3 {[%emt 0:1:18]} 19. Qxd3 {[%emt 0:0:2]} f5 {[%emt 0:0:0]} 20. f4 {[%emt 0:0:26]} Qe6 {[%emt 0:0:53]} 21. Kh2 {[%emt 0:0:12]} Ng6 {[%emt 0:0:2]} 22. Nf3 {[%emt 0:0:24]} Bd8 {[%emt 0:0:2]} 23. Rg1 {[%emt 0:0:3]
} Be7 {[%emt 0:0:42]} 24. Rac1 {[%emt 0:0:14]} a5 {[%emt 0:0:0]} 25. a4 {[%emt 0:0:10]} Rf7 {[%emt 0:0:56]} 26. Rc2 {[%emt 0:0:3]} h5 {[%emt 0:0:46]
} 27. g3 {[%emt 0:0:7]} Nf8 {[%emt 0:0:5]} 28. Kh1 {[%emt 0:0:0]} Qh6 {[%emt 0:0:31]} 29. Rh2 {[%emt 0:0:2]} Ne6 {[%emt 0:0:3]} 30. Qd2 {[%emt 0:1:32]} Qh7 {[%emt 0:0:13]} 31. Qg2 {[%emt 0:0:35]} Kf8 {[%emt 0:0:8]
} 32. Bc1 {[%emt 0:0:13]} Ke8 {[%emt 0:0:6]} 33. Qc2 {[%emt 0:0:0]} Kd7 {[%emt 0:0:23]} 34. Bd2 {[%emt 0:0:11]} g6 {[%emt 0:1:1]} 35. Rc1 {[%emt 0:0:38]} Qg8 {[%emt 0:0:46]} 36. Qb3 {[%emt 0:0:7]} Qb8 {[%emt 0:0:5]
} 37. h4 {[%emt 0:0:37]} Qa7 {[%emt 0:0:5]} 38. Bc3 {[%emt 0:0:0]} Rff8 {[%emt 0:0:29]} 39. Qd1 {[%emt 0:0:15]} Qa6 {[%emt 0:0:12]} 40. b3 {[%emt 0:0:22]} Rfb8 {[%emt 0:0:11]} 41. Rhc2 {[%emt 0:0:4]} Ba3 {[%emt 0:0:4]
} 42. Ra1 {[%emt 0:0:2]} Be7 {[%emt 0:0:2]} 43. Kg2 {[%emt 0:0:0]} Ke8 {[%emt 0:0:21]} 44. Bb2 {[%emt 0:0:9]} Qb6 {[%emt 0:0:34]} 45. Qd3 {[%emt 0:0:18]} Ra6 {[%emt 0:1:2]} 46. Ba3 {[%emt 0:0:29]} Bxa3 {[%emt 0:0:9]
} 47. Rxa3 {[%emt 0:0:2]} Ke7 {[%emt 0:0:1]} 48. Ra1 {[%emt 0:0:10]
} Qb4 {[%emt 0:0:2]} 49. Rd1 {[%emt 0:0:10]} Rb6 {[%emt 0:0:0]} 50. Rc3 {[%emt 0:0:2]} Qa3 {[%emt 0:0:18]} 51. Ne1 {[%emt 0:0:13]} Kf7 {[%emt 0:0:19]} 52. Qb1 {[%emt 0:0:49]} Qb4 {[%emt 0:0:11]} 53. Rcd3 {[%emt 0:0:2]
} Qe7 {[%emt 0:0:13]} 54. Nc2 {[%emt 0:0:9]} Ra8 {[%emt 0:0:0]} 55. Rc3 {[%emt 0:0:29]} Ke8 {[%emt 0:0:0]} 56. Kh3 {[%emt 0:0:5]} Kd8 {[%emt 0:0:0]} 57. Qc1 {[%emt 0:0:21]} Ke8 {[%emt 0:0:2]} 58. Ne1 {[%emt 0:0:9]
} Rb4 {[%emt 0:0:5]} 59. Nc2 {[%emt 0:0:9]} Rb6 {[%emt 0:0:0]} 60. Kg2 {[%emt 0:0:38]} Kd8 {[%emt 0:0:2]} 61. Kf3 {[%emt 0:0:3]} Ke8 {[%emt 0:0:2]} 62. Ke3 {[%emt 0:0:27]} Kd8 {[%emt 0:0:3]} 63. Qa3 {[%emt 0:0:8]
} Qxa3 {[%emt 0:0:10]} 64. Nxa3 {[%emt 0:0:2]} Kd7 {[%emt 0:0:0]} 65. Nc2 {[%emt 0:0:4]} Rba6 {[%emt 0:0:6]} 66. Ne1 {[%emt 0:0:6]} Kc7 {[%emt 0:0:28]} 67. Rdc1 {[%emt 0:0:7]} Kd7 {[%emt 0:0:7]} 68. Nd3 {[%emt 0:0:2]
} Rb6 {[%emt 0:0:6]} 69. Rd1 {[%emt 0:0:54]} Kc7 {[%emt 0:0:0]} 70. Rb1 {[%emt 0:1:53]} Kd7 {[%emt 0:0:5]} 71. Rc2 {[%emt 0:0:3]} Kd8 {[%emt 0:0:10]} 72. Rcb2 {[%emt 0:0:10]} Kc8 {[%emt 0:0:19]} 73. Rc2 1/2-1/2

[Event "FIDE World Rapid-ch Open 2018"]
[White "Hovhannisyan, Robert"]
[Black "Melkumyan, Hrant"]
[Site "St. Petersburg"]
[Round "10.34"]
[Annotator "ChessBase"]
[Result "1-0"]
[Date "2018.12.27"]
[WhiteElo "2637"]
[BlackElo "2670"]
[PlyCount "63"]
[TimeControl "900+10"]

1. e4 {[%emt 0:0:0]} c5 {[%emt 0:0:3]} 2. Nf3 {[%emt 0:0:30]} Nc6 {[%emt 0:0:5]
} 3. Nc3 {[%emt 0:0:7]} g6 {[%emt 0:0:53]} 4. d4 {[%emt 0:0:0]} cxd4 {[%emt 0:0:2]} 5. Nxd4 {[%emt 0:0:2]} Bg7 {[%emt 0:0:2]} 6. Be3 {[%emt 0:0:6]} Nf6 {[%emt 0:0:3]} 7. Be2 {[%emt 0:0:15]} d6 {[%emt 0:0:0]} 8. Qd2 {[%emt 0:0:14]} Bd7 {[%emt 0:0:51]} 9. 0-0-0 {[%emt 0:0:23]} Rc8 {[%emt 0:0:43]} 10. Kb1 {[%emt 0:0:28]} 0-0 {[%emt 0:1:59]} 11. f3 {[%emt 0:0:0]} Ne5 {[%emt 0:0:55]} 12. g4 {[%emt 0:0:59]} b5 {[%emt 0:1:18]} 13. h4 {[%emt 0:0:11]} Bxg4 {[%emt 0:5:18]} 14. fxg4 {[%emt 0:0:40]} b4 {[%emt 0:0:0]} 15. Na4 {[%emt 0:4:4]} Qa5 {[%emt 0:0:40]} 16. b3 {[%emt 0:0:2]} Nxe4 {[%emt 0:0:3]} 17. Qe1 {[%emt 0:0:11]} Nc5 {[%emt 0:2:1]} 18. h5 {[%emt 0:0:33]
} Nxa4 {[%emt 0:0:8]} 19. bxa4 {[%emt 0:0:1]} Rc3 {[%emt 0:0:0]} 20. Bc1 {[%emt 0:1:11]} Qxa4 {[%emt 0:0:48]} 21. Bb2 {[%emt 0:1:12]} Rfc8 {[%emt 0:0:9]} 22. Bb5 {[%emt 0:0:54]} Qa5 {[%emt 0:0:1]} 23. hxg6 {[%emt 0:0:16]
} Nxg6 {[%emt 0:0:24]} 24. Bd7 {[%emt 0:0:23]} R8c4 {[%emt 0:0:0]} 25. Be6 {[%emt 0:1:37]} Rxd4 {[%emt 0:0:18]} 26. Bxf7+ {[%emt 0:0:0]} Kxf7 {[%emt 0:0:5]} 27. Rxd4 {[%emt 0:0:2]} Bxd4 {[%emt 0:0:7]} 28. Rxh7+ {[%emt 0:0:10]} Kg8 {[%emt 0:0:9]} 29. Rh5 {[%emt 0:0:40]} Qa4 {[%emt 0:0:12]
} 30. Qe4 {[%emt 0:0:21]} Nf8 {[%emt 0:0:15]} 31. Qxd4 {[%emt 0:0:59]
} Qxc2+ {[%emt 0:0:1]} 32. Ka1 1-0

[Event "FIDE World Rapid-ch Open 2018"]
[White "Levin, Evgeny A."]
[Black "Savchenko, Boris"]
[Site "St. Petersburg"]
[Round "10.35"]
[Annotator "ChessBase"]
[Result "1/2-1/2"]
[Date "2018.12.27"]
[WhiteElo "2516"]
[BlackElo "2562"]
[PlyCount "116"]
[TimeControl "900+10"]

1. d4 {[%emt 0:0:0]} Nf6 {[%emt 0:0:0]} 2. c4 {[%emt 0:0:0]} g6 {[%emt 0:0:0]} 3. Nc3 {[%emt 0:0:0]} d5 {[%emt 0:0:0]} 4. cxd5 {[%emt 0:0:1]} Nxd5 {[%emt 0:0:0]} 5. e4 {[%emt 0:0:15]} Nxc3 {[%emt 0:0:0]} 6. bxc3 {[%emt 0:0:1]
} Bg7 {[%emt 0:0:0]} 7. Nf3 {[%emt 0:0:3]} c5 {[%emt 0:0:27]
} 8. Be3 {[%emt 0:0:2]} Qa5 {[%emt 0:1:11]} 9. Nd2 {[%emt 0:0:36]} cxd4 {[%emt 0:3:48]
} 10. Nc4 {[%emt 0:0:8]} Qd8 {[%emt 0:0:46]} 11. cxd4 {[%emt 0:0:3]
} 0-0 {[%emt 0:0:4]} 12. Rb1 {[%emt 0:0:53]} f5 {[%emt 0:0:0]} 13. Ne5 {[%emt 0:0:55]} f4 {[%emt 0:1:4]} 14. Bc4+ {[%emt 0:0:20]} Kh8 {[%emt 0:0:8]} 15. Bc1 {[%emt 0:0:15]} Bxe5 {[%emt 0:1:10]} 16. dxe5 {[%emt 0:0:3]
} Qc7 {[%emt 0:2:0]} 17. Bb3 {[%emt 0:0:34]} f3 {[%emt 0:0:0]} 18. gxf3 {[%emt 0:1:15]} Qc3+ {[%emt 0:0:6]} 19. Bd2 {[%emt 0:0:40]} Qxf3 {[%emt 0:0:41]} 20. Qxf3 {[%emt 0:0:24]} Rxf3 {[%emt 0:0:2]} 21. Rg1 {[%emt 0:5:44]
} Nc6 {[%emt 0:0:53]} 22. Rg3 {[%emt 0:0:18]} Nd4 {[%emt 0:0:0]} 23. Rxf3 {[%emt 0:1:32]} Nxf3+ {[%emt 0:0:2]} 24. Ke2 {[%emt 0:0:9]} Bg4 {[%emt 0:0:37]} 25. Bc3 {[%emt 0:0:58]} Rc8 {[%emt 0:0:17]} 26. Kd3 {[%emt 0:0:20]
} Kg7 {[%emt 0:0:13]} 27. e6+ {[%emt 0:0:30]} Kg8 {[%emt 0:0:0]} 28. Bd5 {[%emt 0:0:27]} b6 {[%emt 0:0:3]} 29. a4 {[%emt 0:1:8]} Nxh2 {[%emt 0:0:45]} 30. a5 {[%emt 0:0:11]} Be2+ {[%emt 0:0:20]} 31. Kxe2 {[%emt 0:0:30]
} Rxc3 {[%emt 0:0:3]} 32. axb6 {[%emt 0:0:11]} axb6 {[%emt 0:0:0]} 33. Rxb6 {[%emt 0:0:51]} Nf3 {[%emt 0:0:35]} 34. Rb8+ {[%emt 0:0:11]
} Kg7 {[%emt 0:0:1]} 35. Re8 {[%emt 0:0:3]} Nd4+ {[%emt 0:0:2]} 36. Kd2 {[%emt 0:0:12]
} Rc7 {[%emt 0:0:3]} 37. Rd8 {[%emt 0:0:47]} g5 {[%emt 0:0:0]} 38. Rd7 {[%emt 0:0:25]} Nb5 {[%emt 0:0:3]} 39. Bb3 {[%emt 0:0:21]} Kf6 {[%emt 0:0:19]} 40. Rd5 {[%emt 0:0:10]} Rb7 {[%emt 0:0:11]} 41. e5+ {[%emt 0:0:9]
} Kf5 {[%emt 0:0:7]} 42. Rd7 {[%emt 0:0:2]} Rc7 {[%emt 0:0:0]} 43. Rd5 {[%emt 0:0:18]} Nc3 {[%emt 0:0:26]} 44. Rd7 {[%emt 0:0:2]} Nb5 {[%emt 0:0:12]} 45. Rd5 {[%emt 0:0:2]} Nc3 {[%emt 0:0:12]} 46. Rd7 {[%emt 0:0:0]
} Ne4+ {[%emt 0:0:3]} 47. Ke2 {[%emt 0:0:29]} Rc3 {[%emt 0:0:0]} 48. Bd5 {[%emt 0:0:17]} h5 {[%emt 0:0:13]} 49. Rxe7 {[%emt 0:0:13]} Kxe5 {[%emt 0:0:11]} 50. Bxe4 {[%emt 0:0:8]} Kxe4 {[%emt 0:0:1]} 51. Rg7 {[%emt 0:0:11]
} g4 {[%emt 0:0:3]} 52. e7 {[%emt 0:0:3]} Rc2+ {[%emt 0:0:0]} 53. Kf1 {[%emt 0:0:4]} Rc8 {[%emt 0:0:2]} 54. Kg2 {[%emt 0:0:18]} Ke5 {[%emt 0:0:10]} 55. Rf7 {[%emt 0:0:11]} Re8 {[%emt 0:0:2]} 56. Kg3 {[%emt 0:0:9]
} Ke6 {[%emt 0:0:1]} 57. Rh7 {[%emt 0:0:2]} Kf6 {[%emt 0:0:0]} 58. Rxh5 {[%emt 0:0:14]} Rxe7 {[%emt 0:0:2]} 1/2-1/2

[Event "FIDE World Rapid-ch Open 2018"]
[White "Ponkratov, Pavel"]
[Black "Piorun, Kacper"]
[Site "St. Petersburg"]
[Round "10.36"]
[Annotator "ChessBase"]
[Result "1-0"]
[Date "2018.12.27"]
[WhiteElo "2630"]
[BlackElo "2634"]
[PlyCount "47"]
[TimeControl "900+10"]

1. e4 {[%emt 0:0:0]} c6 {[%emt 0:0:0]} 2. d4 {[%emt 0:0:0]} d5 {[%emt 0:0:0]} 3. e5 {[%emt 0:0:0]} c5 {[%emt 0:0:0]} 4. dxc5 {[%emt 0:0:22]} e6 {[%emt 0:0:0]} 5. Be3 {[%emt 0:0:2]} Qc7 {[%emt 0:1:7]} 6. Nc3 {[%emt 0:0:0]} Bd7 {[%emt 0:0:8]} 7. Nb5 {[%emt 0:0:20]} Bxb5 {[%emt 0:0:8]} 8. Bxb5+ {[%emt 0:0:2]} Nc6 {[%emt 0:0:4]} 9. b4 {[%emt 0:0:37]} a5 {[%emt 0:0:0]} 10. a3 {[%emt 0:0:5]} Qxe5 {[%emt 0:1:48]} 11. Nf3 {[%emt 0:0:4]} Qc7 {[%emt 0:0:1]} 12. Ba4 {[%emt 0:1:13]} axb4 {[%emt 0:1:8]} 13. axb4 {[%emt 0:0:4]
} Qc8 {[%emt 0:0:16]} 14. 0-0 {[%emt 0:2:21]} Nf6 {[%emt 0:0:0]} 15. Bxc6+ {[%emt 0:2:46]} bxc6 {[%emt 0:0:3]} 16. Rxa8 {[%emt 0:0:1]} Qxa8 {[%emt 0:0:1]} 17. Qa1 {[%emt 0:0:1]} Qc8 {[%emt 0:3:41]} 18. Qa4 {[%emt 0:0:4]
} Nd7 {[%emt 0:0:7]} 19. Nd4 {[%emt 0:0:11]} Be7 {[%emt 0:0:0]} 20. Qxc6 {[%emt 0:0:25]} 0-0 {[%emt 0:0:19]} 21. Ra1 {[%emt 0:0:8]} e5 {[%emt 0:1:4]} 22. Nf5 {[%emt 0:0:10]} Bf6 {[%emt 0:1:1]} 23. Qxc8 {[%emt 0:0:46]
} Rxc8 {[%emt 0:0:1]} 24. Nd6 {[%emt 0:0:1]} 1-0

[Event "FIDE World Rapid-ch Open 2018"]
[White "Esipenko, Andrey"]
[Black "Paravyan, David"]
[Site "St. Petersburg"]
[Round "10.37"]
[Annotator "ChessBase"]
[Result "0-1"]
[Date "2018.12.27"]
[WhiteElo "2593"]
[BlackElo "2634"]
[PlyCount "110"]
[TimeControl "900+10"]

1. d4 {[%emt 0:0:0]} Nf6 {[%emt 0:0:0]} 2. Bf4 {[%emt 0:0:0]} c5 {[%emt 0:0:0]
} 3. d5 {[%emt 0:0:0]} d6 {[%emt 0:0:0]} 4. Nc3 {[%emt 0:0:0]} e5 5. dxe6 {[%emt 0:0:24]} Bxe6 {[%emt 0:0:6]} 6. e4 {[%emt 0:0:2]} Be7 {[%emt 0:0:32]} 7. Nf3 {[%emt 0:0:10]} 0-0 {[%emt 0:0:9]} 8. Ng5 {[%emt 0:0:10]
} Nc6 {[%emt 0:1:36]} 9. Nxe6 {[%emt 0:0:32]} fxe6 {[%emt 0:0:0]} 10. Bc4 {[%emt 0:0:16]} Nd4 {[%emt 0:1:49]} 11. Be3 {[%emt 0:1:13]} d5 {[%emt 0:1:37]} 12. Bd3 {[%emt 0:0:28]} Nc6 {[%emt 0:0:25]} 13. exd5 {[%emt 0:1:18]
} exd5 {[%emt 0:0:2]} 14. Bg5 {[%emt 0:0:16]} c4 {[%emt 0:0:0]} 15. Be2 {[%emt 0:0:38]} Kh8 {[%emt 0:0:2]} 16. 0-0 {[%emt 0:1:15]} d4 {[%emt 0:0:11]} 17. Bxf6 {[%emt 0:0:7]} Bxf6 {[%emt 0:0:2]} 18. Ne4 {[%emt 0:0:35]
} d3 {[%emt 0:0:2]} 19. cxd3 {[%emt 0:0:40]} Bxb2 {[%emt 0:0:0]} 20. dxc4 {[%emt 0:0:7]} Bxa1 {[%emt 0:0:3]} 21. Qxa1 {[%emt 0:0:5]} Qd4 {[%emt 0:1:9]} 22. Qb1 {[%emt 0:1:43]} Rae8 {[%emt 0:0:19]} 23. Ng5 {[%emt 0:0:5]
} Qh4 {[%emt 0:0:2]} 24. Nf3 {[%emt 0:0:4]} Qh5 {[%emt 0:0:0]} 25. Qxb7 {[%emt 0:0:47]} Qc5 {[%emt 0:1:5]} 26. Qb2 {[%emt 0:0:50]} Ne5 {[%emt 0:0:5]} 27. Qc2 {[%emt 0:0:20]} Ng6 {[%emt 0:0:30]} 28. Bd3 {[%emt 0:0:49]
} Nf4 {[%emt 0:0:3]} 29. Be4 {[%emt 0:0:6]} Qh5 {[%emt 0:0:0]} 30. h3 {[%emt 0:1:24]} Re6 {[%emt 0:0:48]} 31. c5 {[%emt 0:1:23]} Rh6 {[%emt 0:0:20]
} 32. Nh2 {[%emt 0:0:46]} Qg5 {[%emt 0:2:12]} 33. Kh1 {[%emt 0:0:0]} Ne6 {[%emt 0:0:16]} 34. c6 {[%emt 0:0:25]} Nd4 {[%emt 0:0:2]} 35. Qc4 {[%emt 0:0:29]} Qe5 {[%emt 0:0:12]} 36. Ng4 {[%emt 0:0:24]} Rxh3+ {[%emt 0:0:38]
} 37. gxh3 {[%emt 0:0:15]} Qxe4+ {[%emt 0:0:1]} 38. f3 {[%emt 0:0:18]
} Rxf3 {[%emt 0:0:4]} 39. Rxf3 {[%emt 0:0:29]} Qxf3+ {[%emt 0:0:0]} 40. Kh2 {[%emt 0:0:6]} Qf4+ {[%emt 0:1:15]} 41. Kg2 {[%emt 0:0:14]} Qe4+ {[%emt 0:0:2]} 42. Kf2 {[%emt 0:0:47]} Qf3+ {[%emt 0:0:2]} 43. Ke1 {[%emt 0:0:5]
} Nxc6 {[%emt 0:0:7]} 44. Nf2 {[%emt 0:0:32]} h6 {[%emt 0:0:0]} 45. Qa4 {[%emt 0:0:34]} Qd5 {[%emt 0:0:19]} 46. Kf1 {[%emt 0:0:14]} a5 {[%emt 0:0:7]} 47. Qg4 {[%emt 0:0:24]} Ne7 {[%emt 0:0:14]} 48. Qe4 {[%emt 0:0:20]
} Qxe4 {[%emt 0:0:26]} 49. Nxe4 {[%emt 0:0:1]} Kh7 {[%emt 0:0:0]} 50. Nd6 {[%emt 0:0:10]} Kg6 {[%emt 0:0:7]} 51. Kf2 {[%emt 0:0:1]} Kg5 {[%emt 0:0:11]} 52. Kf3 {[%emt 0:0:10]} Kh4 {[%emt 0:0:16]} 53. Kg2 {[%emt 0:0:3]
} Nd5 {[%emt 0:0:14]} 54. Nf5+ {[%emt 0:0:20]} Kg5 {[%emt 0:0:0]} 55. Nxg7 {[%emt 0:0:16]} Nc7 {[%emt 0:0:2]} 0-1

[Event "FIDE World Rapid-ch Open 2018"]
[White "Yudin, Sergei"]
[Black "Postny, Evgeny"]
[Site "St. Petersburg"]
[Round "10.38"]
[Annotator "ChessBase"]
[Result "1/2-1/2"]
[Date "2018.12.27"]
[WhiteElo "2507"]
[BlackElo "2615"]
[PlyCount "82"]
[TimeControl "900+10"]

1. e4 {[%emt 0:0:0]} e5 {[%emt 0:0:0]} 2. Nf3 {[%emt 0:0:0]} Nc6 {[%emt 0:0:0]
} 3. Bc4 {[%emt 0:0:0]} Nf6 {[%emt 0:0:0]} 4. d3 {[%emt 0:0:0]} Bc5 {[%emt 0:0:1]} 5. 0-0 {[%emt 0:0:3]} d6 {[%emt 0:0:3]} 6. c3 {[%emt 0:0:4]
} a5 {[%emt 0:0:10]} 7. h3 {[%emt 0:0:18]} h6 {[%emt 0:0:12]} 8. Re1 {[%emt 0:0:23]} 0-0 {[%emt 0:0:6]} 9. Nbd2 {[%emt 0:0:3]} Ba7 {[%emt 0:1:42]
} 10. Nf1 {[%emt 0:0:11]} Ne7 {[%emt 0:0:5]} 11. Ng3 {[%emt 0:0:0]} Ng6 {[%emt 0:0:2]} 12. Bb3 {[%emt 0:0:30]} c6 {[%emt 0:0:31]} 13. d4 {[%emt 0:0:6]} Re8 {[%emt 0:0:5]} 14. Be3 {[%emt 0:0:20]} Bb6 {[%emt 0:0:0]} 15. Qd2 {[%emt 0:0:24]} a4 {[%emt 0:0:17]} 16. Bc2 {[%emt 0:0:5]} a3 {[%emt 0:0:6]} 17. b4 {[%emt 0:0:41]} Be6 {[%emt 0:0:21]} 18. Nf5 {[%emt 0:0:33]
} Bxf5 {[%emt 0:2:7]} 19. exf5 {[%emt 0:0:3]} exd4 {[%emt 0:0:0]} 20. Bxd4 {[%emt 0:1:11]} Ne5 {[%emt 0:0:33]} 21. Bxb6 {[%emt 0:2:14]
} Qxb6 {[%emt 0:0:34]} 22. Nxe5 {[%emt 0:0:25]} dxe5 {[%emt 0:0:3]} 23. Rad1 {[%emt 0:0:10]} Rad8 {[%emt 0:0:21]} 24. Qc1 {[%emt 0:0:4]} Rxd1 {[%emt 0:0:19]
} 25. Bxd1 {[%emt 0:0:22]} e4 {[%emt 0:0:30]} 26. Bb3 {[%emt 0:0:0]} Qb5 {[%emt 0:3:37]} 27. g4 {[%emt 0:1:25]} Qa6 {[%emt 0:1:22]} 28. Qd2 {[%emt 0:1:12]} Qb6 {[%emt 0:0:6]} 29. Kg2 {[%emt 0:0:45]} Qc7 {[%emt 0:0:22]
} 30. Qc1 {[%emt 0:0:30]} Rd8 {[%emt 0:0:11]} 31. Rd1 {[%emt 0:0:0]} Rxd1 {[%emt 0:0:49]} 32. Qxd1 {[%emt 0:0:5]} e3 {[%emt 0:0:2]} 33. fxe3 {[%emt 0:0:29]} Ne4 {[%emt 0:0:2]} 34. Kf3 {[%emt 0:0:31]} Ng5+ {[%emt 0:0:13]
} 35. Kg2 {[%emt 0:0:10]} Ne4 {[%emt 0:0:2]} 36. Kf3 {[%emt 0:0:0]} Qe5 {[%emt 0:0:16]} 37. Qd3 {[%emt 0:3:39]} Ng5+ {[%emt 0:0:42]} 38. Kg2 {[%emt 0:0:3]} Ne4 {[%emt 0:0:2]} 39. Kf3 {[%emt 0:0:2]} Ng5+ {[%emt 0:0:44]
} 40. Kg2 {[%emt 0:0:1]} Ne4 {[%emt 0:0:38]} 41. Kf3 {[%emt 0:0:0]} Ng5+ {[%emt 0:0:7] Ke4} 1/2-1/2

[Event "FIDE World Rapid-ch Open 2018"]
[White "Mchedlishvili, Mikheil"]
[Black "Jumabayev, Rinat"]
[Site "St. Petersburg"]
[Round "10.39"]
[Annotator "ChessBase"]
[Result "1-0"]
[Date "2018.12.27"]
[WhiteElo "2610"]
[BlackElo "2602"]
[PlyCount "77"]
[TimeControl "900+10"]

1. d4 {[%emt 0:0:0]} d5 {[%emt 0:0:0]} 2. c4 {[%emt 0:0:1]} dxc4 {[%emt 0:0:0]
} 3. Nf3 {[%emt 0:0:31]} Nf6 {[%emt 0:0:6]} 4. Nc3 {[%emt 0:0:0]} e6 {[%emt 0:0:10]} 5. e4 {[%emt 0:0:21]} b5 {[%emt 0:0:2]} 6. e5 {[%emt 0:0:18]
} Nd5 {[%emt 0:0:2]} 7. Nxb5 {[%emt 0:0:13]} Nb6 {[%emt 0:0:0]} 8. Be2 {[%emt 0:0:11]} Nc6 {[%emt 0:1:31]} 9. 0-0 {[%emt 0:0:14]} Be7 {[%emt 0:2:43]
} 10. Qd2 {[%emt 0:0:13]} Bb7 {[%emt 0:1:1]} 11. Qf4 {[%emt 0:0:0]} Qd7 {[%emt 0:0:15]} 12. Rd1 {[%emt 0:3:44]} h6 {[%emt 0:0:56]} 13. b3 {[%emt 0:2:4]} cxb3 {[%emt 0:0:50]} 14. axb3 {[%emt 0:1:47]} Nb4 {[%emt 0:0:16]
} 15. Qg3 {[%emt 0:0:52]} g6 {[%emt 0:0:44]} 16. Bd2 {[%emt 0:0:0]} N6d5 {[%emt 0:0:33]} 17. Ne1 {[%emt 0:0:49]} a5 {[%emt 0:1:3]} 18. Nc3 {[%emt 0:0:15]} Nb6 {[%emt 0:1:38]} 19. Be3 {[%emt 0:1:53]} N4d5 {[%emt 0:0:41]
} 20. Nxd5 Bxd5 {[%emt 0:0:14]} 21. Bd2 {[%emt 0:0:53]} a4 {[%emt 0:0:25]
} 22. bxa4 {[%emt 0:0:2]} Rxa4 {[%emt 0:0:3]} 23. Rxa4 {[%emt 0:0:23]
} Qxa4 {[%emt 0:0:2]} 24. Qc3 {[%emt 0:0:3]} Qc6 {[%emt 0:0:0]} 25. Qb2 {[%emt 0:0:8]} Kf8 {[%emt 0:0:1]} 26. Rc1 {[%emt 0:0:5]} Qb7 {[%emt 0:0:27]} 27. Bb4 {[%emt 0:0:5]} Bxb4 {[%emt 0:0:43]} 28. Qxb4+ {[%emt 0:0:1]
} Kg7 {[%emt 0:0:2]} 29. Qe7 {[%emt 0:0:3]} Rc8 {[%emt 0:0:0]} 30. h4 {[%emt 0:0:15]} Be4 {[%emt 0:0:1]} 31. Qf6+ {[%emt 0:0:27]} Kg8 {[%emt 0:0:1]} 32. Qf4 {[%emt 0:0:1]} h5 {[%emt 0:1:22]} 33. Bf3 {[%emt 0:0:0]} Bd5 {[%emt 0:0:28]} 34. Qg5 {[%emt 0:0:37]} Nd7 {[%emt 0:0:13]} 35. Bxh5 {[%emt 0:0:10]} Qb4 {[%emt 0:0:53]} 36. Nc2 {[%emt 0:0:55]} Qc3 {[%emt 0:0:33]
} 37. Be2 {[%emt 0:0:19]} c5 {[%emt 0:0:17]} 38. h5 {[%emt 0:0:0]} cxd4 {[%emt 0:0:24]} 39. hxg6 {[%emt 0:0:5]} 1-0